Cogmind - Beta 13 --- EXPLORER MODE // 2024.04.12 @ 16:06:12 Player: AshleyApplesauce Result: Destroyed by B-75 Beast with Heavy Plasma Cannon Performance ------------- Evolutions (4) 2000 Regions Visited (7) 1400 Robots Destroyed (84) 420 Value Destroyed (2759) 2759 Prototype IDs (1) 20 Alien Tech Used (0) 0 Bonus (500) 500 TOTAL SCORE: 7099 Bonus ------- Entered DSFs 500 Cogmind --------- Core Integrity 0/850 Matter 266/300 Energy 100/100 System Corruption 0% Temperature Cool (12) Movement Walking (470) Ox5 Location -6/Extension Parts ------- > --- POWER (3) -------- (None) > --- PROPULSION (4) --- Carbon-fiber Leg > --- UTILITY (5) ------ Huge Storage Unit Advanced Visual Processing Unit Weapon Cycler > --- WEAPON (4) ------- (None) > --- INVENTORY (25) --- Improved Heat Sink Large Matter Pod (150) Trap Scanner Matter Filter Great Maul Peak State ------------ > --- POWER ------------ Light Nuclear Core Micro Nuclear Core Light Angular Momentum Engine > --- PROPULSION ------- Carbon-fiber Leg Carbon-fiber Leg Titanium Leg Armored Leg > --- UTILITY ---------- Advanced Heat Sink Huge Storage Unit Advanced Visual Processing Unit Weapon Cycler Improved Reaction Control System > --- WEAPON ----------- EM Pulse Cannon Heavy Plasma Cannon Heavy Plasma Cannon Advanced Assault Cannon > --- INVENTORY -------- Light Nuclear Core Carbon-fiber Leg Carbon-fiber Leg Carbon-fiber Leg Improved Heat Sink Large Matter Pod Trap Scanner Matter Filter EM Pulse Cannon EM Pulse Cannon Great Maul [Rating: 64] Favorites ----------- Power Light Nuclear Core Engine Light Ion Engine Power Core Light Nuclear Core Propulsion Aluminum Leg Leg Aluminum Leg Utility Huge Storage Unit Device Improved Heat Sink Storage Huge Storage Unit Processor Advanced Visual Processing Unit Protection Hardened Light Armor Plating Weapon Heavy Plasma Cannon Energy Gun EM Pulse Gun Energy Cannon Heavy Plasma Cannon Ballistic Gun Light Assault Rifle Ballistic Cannon Advanced Assault Cannon Impact Weapon Great Maul Build | -11 -10 -9 -8 -7 -7 -6 -6 ------- Run | Yrd Mat Mat Mat Fac DSF Fac Ext Slots Evolved 9 | . 1 2 2 2 . 2 . Power 2 | . . . 1 . . 1 . Propulsion 2 | . 1 1 . . . . . Utility 3 | . . 1 . 2 . . . Weapon 2 | . . . 1 . . 1 . Parts Attached 68 | 7 2 7 18 4 13 13 4 Power 15 | 1 . 3 5 1 1 3 1 Engine 8 | 1 . 2 4 1 . . . Core 7 | . . 1 1 . 1 3 1 Reactor . | . . . . . . . . Propulsion 18 | 2 1 1 5 1 3 4 1 Treads . | . . . . . . . . Leg 18 | 2 1 1 5 1 3 4 1 Wheel . | . . . . . . . . Hover . | . . . . . . . . Flight . | . . . . . . . . Utility 14 | 2 1 2 1 2 3 3 . Device 8 | . . 1 1 . 3 3 . Storage 2 | . 1 . . 1 . . . Processor 2 | 1 . . . 1 . . . Hackware . | . . . . . . . . Protection 2 | 1 . 1 . . . . . Artifact . | . . . . . . . . Weapon 21 | 2 . 1 7 . 6 3 2 Energy Gun 2 | . . . 2 . . . . Energy Cannon 10 | . . . . . 6 2 2 Ballistic Gun 7 | 2 . 1 4 . . . . Ballistic Cannon 1 | . . . . . . 1 . Launcher . | . . . . . . . . Special Weapon . | . . . . . . . . Impact Weapon 1 | . . . 1 . . . . Slashing Weapon . | . . . . . . . . Piercing Weapon . | . . . . . . . . Special Melee Weapon . | . . . . . . . . Unidentified Prototypes 1 | . . . 1 . . . . Parts Lost 21 | . . . 2 . . 4 15 Power 5 | . . . 1 . . . 4 Propulsion 5 | . . . . . . 2 3 Utility 4 | . . . . . . 2 2 Weapon 7 | . . . 1 . . . 6 Highest Loss Streak 15 | . . . 1 . . 2 15 To Critical Strikes . | . . . . . . . . Average Slot Usage (%) 97 | . 100 96 98 85 100 98 85 Engine 7 | . 12 8 7 7 7 6 4 Core 6 | . . 1 7 7 7 12 9 Leg 30 | . 37 36 33 28 28 24 21 Device 9 | . . 10 8 7 10 13 16 Storage 7 | . 5 10 8 7 10 6 6 Processor 3 | . 6 . . . 7 6 6 Protection 7 | . 12 10 8 7 7 3 . Energy Cannon 8 | . . . . . 17 21 14 Ballistic Gun 12 | . 25 20 21 21 3 . . Ballistic Cannon 1 | . . . . . . 3 4 Naked Turns . | . . . . . . . . Heaviest Build 144 | 9 89 96 104 110 133 144 136 Greatest Support 63 | 20 30 40 57 62 62 63 60 Greatest Overweight (x) 6 | . 2 2 2 1 2 2 6 Average Overweight (x) 1 | . . 2 1 1 1 2 2 Largest Inventory Capacity 25 | 5 25 25 25 25 25 25 25 Average Capacity 23 | 5 13 25 25 25 25 25 25 Most Carried 13 | 4 5 12 12 12 13 11 9 Average Carried 8 | 1 4 7 9 9 9 10 8 Final Capacity 25 | 5 25 25 25 25 25 25 25 Final Carried 12 | 4 5 12 12 7 12 9 5 Class Distribution -------------------- 43% | Scavenger-Tank 31% | Hacker-Mutant 14% | Scavenger-Gunner 7% | Scavenger-Mutant Dominant Class ---------------- Hacker-Mutant | -10/Materials Hacker-Mutant | -9/Materials Scavenger-Tank | -8/Materials Scavenger-Tank | -7/Factory Scavenger-Tank | -7/DSF Scavenger-Tank | -6/Factory Scavenger-Gunner | -6/Extension Resources | -11 -10 -9 -8 -7 -7 -6 -6 ----------- Run | Yrd Mat Mat Mat Fac DSF Fac Ext Matter Collected 1962 | 278 110 348 619 . 210 394 3 Remotely . | . . . . . . . . Salvage Created 3770 | 49 174 401 1152 . 559 1083 352 Parts 197 | 5 12 37 67 . 24 43 9 Haulers Intercepted 1 | . . . . . 1 . . Recyclers Shooed 8 | . . . 4 . . 4 . Parts Field Recycled . | . . . . . . . . Retrieved Matter . | . . . . . . . . Parts Self-Destructed . | . . . . . . . . Prevented . | . . . . . . . . Kills | -11 -10 -9 -8 -7 -7 -6 -6 ------- Run | Yrd Mat Mat Mat Fac DSF Fac Ext Combat Hostiles Destroyed 63 | 1 5 9 21 . 9 15 3 Guns 37 | 1 5 9 21 . 1 . . Cannons 22 | . . . . . 7 13 2 AOE 1 | . . . . . . 1 . Classes Destroyed 14 | 1 2 1 4 . 3 3 . Worker 2 | . . . 2 . . . . Builder 1 | . . . . . . 1 . Tunneler 1 | . . . 1 . . . . Hauler 1 | . . . . . 1 . . Recycler 4 | . . . 1 . . 2 1 Operator 1 | . . . . . . 1 . Watcher 11 | . 1 3 4 . . 2 1 Swarmer 19 | . 2 3 7 . 2 5 . Grunt 31 | 1 3 4 9 . 5 7 2 Brawler 1 | . . . . . 1 . . Sentry 7 | . . 2 4 . . . 1 Hunter 3 | . . . 1 . . 2 . Programmer 1 | . . . . . . 1 . Heavy 1 | . . . . . 1 . . Best Kill Streak 9 | 1 3 4 9 . 3 4 4 Combat Bots Only 6 | 1 3 2 6 . 2 3 2 Max Kills in Single Turn 2 | 1 2 2 2 . 1 2 1 Gunslinging 1 | . 1 1 1 . . . . Exploded 1 | . . . . . . 1 . Melee . | . . . . . . . . Uniques/NPCs Destroyed . | . . . . . . . . Combat | -11 -10 -9 -8 -7 -7 -6 -6 -------- Run | Yrd Mat Mat Mat Fac DSF Fac Ext Hostile Shots Fired 395 | 2 37 34 119 . 18 53 132 Missed 111 | . 10 8 36 . 4 11 42 Damage Taken 3333 | 13 155 217 761 . 252 844 1091 Core 1081 | 7 38 29 94 . 45 476 392 Absorbed by Shields . | . . . . . . . . Ignored by Resistances 1656 | 9 106 135 469 . 146 234 557 Regen/Repaired (Parts) 41 | . . . 41 . . . . Core Remaining (%) 89 | 97 82 92 82 . 93 . . Volleys Fired 183 | 2 18 32 64 . 17 38 12 Largest 4 | 2 2 2 3 . 3 4 4 Hottest 333 | 40 40 43 86 . 270 333 291 Shots Fired 484 | 4 36 64 186 . 51 117 26 Gun 305 | 4 36 64 186 . 15 . . Cannon 179 | . . . . . 36 117 26 Launcher . | . . . . . . . . Special . | . . . . . . . . Kinetic 304 | 4 36 64 158 . 15 22 5 Thermal 106 | . . . . . 27 62 17 Explosive . | . . . . . . . . Electromagnetic 74 | . . . 28 . 9 33 4 Robot Hit Streak 26 | 3 15 12 24 . 18 26 23 Robot Miss Streak 3 | . 1 2 2 . 1 3 1 Penetration Max . | . . . . . . . . Secondary Targets 8 | . 1 1 6 . . . . Max Gunslinging Chain 1 | . 1 1 1 . . . . Shots Hit Robots 364 | 3 29 46 149 . 39 75 23 Core Hits 149 | 2 12 21 59 . 15 32 8 Critical Kills 4 | . . . 1 . 1 1 1 Critical Parts Destroyed 1 | . . . 1 . . . . Critical Strikes 10 | . . . 4 . 1 3 2 Meltdown 3 | . . . . . 1 1 1 Destroy 2 | . . . 2 . . . . Blast 1 | . . . . . . 1 . Corrupt 4 | . . . 2 . . 1 1 Melee Attacks . | . . . . . . . . Impact . | . . . . . . . . Slashing . | . . . . . . . . Piercing . | . . . . . . . . Sneak Attacks . | . . . . . . . . Combat Hostiles . | . . . . . . . . Follow-up Attacks . | . . . . . . . . Damage Inflicted 6947 | 29 268 497 1839 . 1043 2536 735 Guns 2799 | 29 268 493 1829 . 180 . . Cannons 3929 | . . . . . 790 2404 735 Explosions 186 | . . . . . 73 113 . Melee . | . . . . . . . . Ramming 33 | . . 4 10 . . 19 . Kinetic 2955 | 29 268 493 1481 . 180 390 114 Thermal 2741 | . . . . . 681 1535 525 Explosive . | . . . . . . . . Electromagnetic 1218 | . . . 348 . 182 592 96 Impact . | . . . . . . . . Slashing . | . . . . . . . . Piercing . | . . . . . . . . Highest Corruption 1 | . . . 1 . . . . Average Corruption 1 | . . . 1 . . . . Corruption Purged . | . . . . . . . . Corruption Blocked . | . . . . . . . . Overload Shots . | . . . . . . . . Overflow Damage 103 | . . . . . 5 98 . Projectiles 102 | . . . . . 4 98 . Explosions 1 | . . . . . 1 . . Melee . | . . . . . . . . Knockbacks 4 | . . . . . . 4 . Impact . | . . . . . . . . Kinetic 4 | . . . . . . 4 . Secondary . | . . . . . . . . Self-Inflicted Damage . | . . . . . . . . Shots . | . . . . . . . . Rammed . | . . . . . . . . Targets Rammed 7 | . . 1 2 . . 4 . Kicked 7 | . . 1 2 . . 4 . Crushed . | . . . . . . . . Highest Temperature 954 | 6 51 19 189 . 503 954 574 Average Temperature 195 | 6 14 7 58 . 173 310 169 Received Heat Transfer 1188 | 12 105 183 450 . 54 171 213 Effects 94 | . . . . . 1 86 7 Shutdowns 35 | . . . . . 1 32 2 Energy Bleed 3 | . . . . . . 3 . Interference 13 | . . . . . . 11 2 Matter Decay 5 | . . . . . . 5 . Short Circuit 1 | . . . . . . 1 . Damage (minor) 7 | . . . . . . 7 . Damage (major) 26 | . . . . . . 24 2 Damage (core) 4 | . . . . . . 3 1 Siege Activations . | . . . . . . . . Robots Corrupted 1 | . . . . . 1 . . Combat Hostiles 1 | . . . . . 1 . . Parts Fried 3 | . . . . . 1 . 2 Impact Corruptions . | . . . . . . . . Robots Melted 3 | . . . . . 1 1 1 Combat Hostiles 2 | . . . . . . 1 1 Parts Melted 9 | . . . . . 3 4 2 Heat Transferred 4100 | . . . . . 1050 2250 800 Parts Sabotaged . | . . . . . . . . Parts Stolen . | . . . . . . . . Parts Stripped . | . . . . . . . . Power Chain Reactions 2 | . . . . . 1 1 . Alert | -11 -10 -9 -8 -7 -7 -6 -6 ------- Run | Yrd Mat Mat Mat Fac DSF Fac Ext Peak Influence 366 | 20 166 219 366 39 250 267 38 Initial 97 | . 9 . 14 39 20 97 31 Average 92 | 5 112 61 131 39 132 92 24 Maximum Alert Level 1 | . . 1 1 . 1 1 . Low Security (%) 92 | 100 100 99 76 100 85 96 100 Level 1 7 | . . . 23 . 14 3 . Level 2 . | . . . . . . . . Level 3 . | . . . . . . . . Level 4 . | . . . . . . . . Level 5 . | . . . . . . . . High Security . | . . . . . . . . Max Security . | . . . . . . . . Sterilizations 1 | . . . . . 1 . . Squads Dispatched 7 | . . . 2 . 1 4 . Investigation 1 | . . . . . . 1 . Extermination 1 | . . . . . . 1 . Reinforcement 4 | . . . 1 . 1 2 . Assault . | . . . . . . . . Garrison 1 | . . . 1 . . . . Intercept . | . . . . . . . . Searches Triggered . | . . . . . . . . Construction Impeded 1 | . . . . . . 1 . Haulers Reinforced 1 | . . . . . . 1 . Active Scanning Responses . | . . . . . . . . Cargo Convoy Interrupts . | . . . . . . . . Stealth | -11 -10 -9 -8 -7 -7 -6 -6 --------- Run | Yrd Mat Mat Mat Fac DSF Fac Ext Distress Signals 2 | . 1 . . . . . 1 Communications Jammed . | . . . . . . . . Distress Signals . | . . . . . . . . Times Spotted 89 | 1 8 17 27 . 9 19 8 Peak Tracking Total 6 | 1 6 5 5 . 2 3 5 Tactical Retreats 2 | . 1 1 . . . . . Traps | -11 -10 -9 -8 -7 -7 -6 -6 ------- Run | Yrd Mat Mat Mat Fac DSF Fac Ext Traps Triggered 2 | . . . 1 . 1 . . Indirectly . | . . . . . . . . Trap Hack Attempts . | . . . . . . . . Triggered . | . . . . . . . . Disarmed . | . . . . . . . . Reprogrammed . | . . . . . . . . Reused . | . . . . . . . . Traps Extracted . | . . . . . . . . Installed . | . . . . . . . . Triggered . | . . . . . . . . Machines | -11 -10 -9 -8 -7 -7 -6 -6 ---------- Run | Yrd Mat Mat Mat Fac DSF Fac Ext Machines Disabled 4 | . . . . . 1 3 . Max in Single Turn 1 | . . . . . 1 1 . Machines Repaired . | . . . . . . . . Machines Dismantled . | . . . . . . . . Machines Sabotaged . | . . . . . . . . Overloaded Fab Kills . | . . . . . . . . Hacking | -11 -10 -9 -8 -7 -7 -6 -6 --------- Run | Yrd Mat Mat Mat Fac DSF Fac Ext Machines Accessed 10 | . 2 3 2 1 . 2 . Terminals 9 | . 2 3 1 1 . 2 . Fabricators . | . . . . . . . . Repair Stations 1 | . . . 1 . . . . Recycling Units . | . . . . . . . . Scanalyzers . | . . . . . . . . Garrison Access . | . . . . . . . . Total Hacks 19 | . 3 6 3 3 . 4 . Successful 11 | . 2 3 3 1 . 2 . Failed 8 | . 1 3 . 2 . 2 . Catastrophic . | . . . . . . . . Database Lockouts . | . . . . . . . . Manual . | . . . . . . . . Terminals 17 | . 3 6 1 3 . 4 . Fabricators . | . . . . . . . . Repair Stations 2 | . . . 2 . . . . Recycling Units . | . . . . . . . . Scanalyzers . | . . . . . . . . Garrison Access . | . . . . . . . . Terminal Hacks 9 | . 2 3 1 1 . 2 . Open Door 1 | . . . . . . 1 . Open DSF 1 | . . . . 1 . . . Level Access Points 1 | . . . 1 . . . . Branch Access Points 1 | . 1 . . . . . . Locate Traps 1 | . 1 . . . . . . Security Status 1 | . . . . . . 1 . Investigation Status 1 | . . 1 . . . . . Hauler Manifests 1 | . . 1 . . . . . Zone Layout 1 | . . 1 . . . . . Fabricator Hacks . | . . . . . . . . Repair Station Hacks 2 | . . . 2 . . . . Scan Component 1 | . . . 1 . . . . Repair 1 | . . . 1 . . . . Recycling Unit Hacks . | . . . . . . . . Scanalyzer . | . . . . . . . . Garrison Access Hacks . | . . . . . . . . Unauthorized Hacks . | . . . . . . . . Terminals . | . . . . . . . . Fabricators . | . . . . . . . . Repair Stations . | . . . . . . . . Recycling Units . | . . . . . . . . Scanalyzers . | . . . . . . . . Garrison Access . | . . . . . . . . Data Cores Recovered . | . . . . . . . . Used . | . . . . . . . . Hacking Detections 5 | . 1 2 . 1 . 1 . Full Trace Events . | . . . . . . . . Feedback Events . | . . . . . . . . Feedback Blocked . | . . . . . . . . Robot Schematics Acquired . | . . . . . . . . Robots Built . | . . . . . . . . Authchips . | . . . . . . . . Time . | . . . . . . . . Total Robot Build Rating . | . . . . . . . . Part Schematics Acquired . | . . . . . . . . Parts Built . | . . . . . . . . Authchips . | . . . . . . . . Time . | . . . . . . . . Total Part Build Rating . | . . . . . . . . Parts Repaired 1 | . . . 1 . . . . Time 38 | . . . 38 . . . . Parts Recycled . | . . . . . . . . Recycled Matter . | . . . . . . . . Retrieved Matter . | . . . . . . . . Retrieved Components . | . . . . . . . . Parts Scanalyzed . | . . . . . . . . Part Schematics Acquired . | . . . . . . . . Parts Damaged . | . . . . . . . . Bothacking | -11 -10 -9 -8 -7 -7 -6 -6 ------------ Run | Yrd Mat Mat Mat Fac DSF Fac Ext Used RIF Installer . | . . . . . . . . Robots Hacked . | . . . . . . . . Non-combat . | . . . . . . . . Combat . | . . . . . . . . Robot Hacks Applied . | . . . . . . . . Relay Couplers Released . | . . . . . . . . Fabnet Peak Effective % . | . . . . . . . . Robots Rewired . | . . . . . . . . Allies Hacked . | . . . . . . . . Hacks Repelled . | . . . . . . . . Allies | -11 -10 -9 -8 -7 -7 -6 -6 -------- Run | Yrd Mat Mat Mat Fac DSF Fac Ext Total Allies . | . . . . . . . . Largest Group . | . . . . . . . . Highest-Rated Group . | . . . . . . . . Highest-Rated Ally . | . . . . . . . . Total Orders . | . . . . . . . . Ally Attacks . | . . . . . . . . Total Damage . | . . . . . . . . Kills . | . . . . . . . . Allies Corrupted . | . . . . . . . . Allies Melted . | . . . . . . . . Intel | -11 -10 -9 -8 -7 -7 -6 -6 ------- Run | Yrd Mat Mat Mat Fac DSF Fac Ext Robot Analysis Total . | . . . . . . . . Derelict Logs Recovered . | . . . . . . . . Drone Launches . | . . . . . . . . Drone Recoveries . | . . . . . . . . Exploration | -11 -10 -9 -8 -7 -7 -6 -6 ------------- Run | Yrd Mat Mat Mat Fac DSF Fac Ext Turns Passed 4346 | 108 457 982 987 11 403 1102 296 Spaces Moved 1641 | 84 245 334 385 3 133 364 93 Core 22 | 22 . . . . . . . Treads . | . . . . . . . . Legs 1619 | 62 245 334 385 3 133 364 93 Wheels . | . . . . . . . . Hover . | . . . . . . . . Flight . | . . . . . . . . Fastest Speed 50 | 50 120 260 192 192 192 260 190 Average Speed 221 | 101 164 260 194 192 235 261 282 Slowest Speed 540 | 120 260 260 260 192 262 262 540 Overloaded Moves . | . . . . . . . . Propulsion Burnouts . | . . . . . . . . Robots Hopped . | . . . . . . . . Cave-ins Triggered . | . . . . . . . . Exploration Rate (%) 34 | 6 46 27 36 . 92 13 20 Regions Visited 7 Branch Regions 1 Pre-discovered Areas . | . . . . . . . . Known Exits Taken 6 | 1 1 1 1 1 . 1 . Unknown Exits Taken . | . . . . . . . . Scrap Searched . | . . . . . . . . Spaces Dug . | . . . . . . . . Terrain Destroyed 18 | . . . . . 1 17 . Melee . | . . . . . . . . Projectile 15 | . . . . . . 15 . AOE 3 | . . . . . 1 2 . Terrain Rammed . | . . . . . . . . Walls Destroyed . | . . . . . . . . Machines Disabled . | . . . . . . . . Actions | -11 -10 -9 -8 -7 -7 -6 -6 --------- Run | Yrd Mat Mat Mat Fac DSF Fac Ext Total 1978 | 103 267 386 493 9 184 427 109 Wait . | . . . . . . . . Move 1634 | 83 244 333 384 2 132 363 93 Hop . | . . . . . . . . Pick Up 57 | 11 3 11 15 . 11 6 . Fast Attach . | . . . . . . . . Attach 28 | 7 1 2 5 2 . 7 4 Detach . | . . . . . . . . Swap 40 | . 1 5 13 2 13 6 . Drop 24 | . . 2 10 3 6 3 . Fire 183 | 2 18 32 64 . 17 38 12 Melee . | . . . . . . . . Ram . | . . . . . . . . Kick 7 | . . 1 2 . . 4 . Crush . | . . . . . . . . Escape Stasis 5 | . . . . . 5 . . Rewire . | . . . . . . . . Trap . | . . . . . . . . Miscellaneous . | . . . . . . . . Route ------- -11/Scrapyard -10/Materials (discovered 2 exits: *Mat / Min) -9/Materials -8/Materials (discovered 3 exits: *Fac x3) -7/Factory -7/DSF -6/Factory -6/Extension History --------- Turn | Location | Event 2 | -11/Scrapyard | Met Revision 17 73 | -11/Scrapyard | Identified exit to Materials 73 | -11/Scrapyard | Discovered exit to Materials (range 8) 109 | -11/Scrapyard | Entered Materials 109 | -10/Materials | Evolved 1 slot: Propulsion x1 224 | -10/Materials | Identified exit to Materials 224 | -10/Materials | Discovered exit to Materials (range 15) 301 | -10/Materials | Build established: Hacker-Mutant 332 | -10/Materials | Identified exit to Mines 566 | -10/Materials | Entered another Materials area 566 | -9/Materials | Evolved 2 slots: Propulsion x1, Utility x1 918 | -9/Materials | Identified exit to Materials 918 | -9/Materials | Discovered exit to Materials (range 14) 1523 | -9/Materials | Build established: Scavenger-Mutant 1548 | -9/Materials | Entered another Materials area 1548 | -8/Materials | Evolved 2 slots: Power x1, Weapon x1 1873 | -8/Materials | Repaired Lgt. Nuclear Core 2174 | -8/Materials | Build established: Scavenger-Tank 2268 | -8/Materials | Identified exit to Factory 2481 | -8/Materials | Garrison activated, responded to threat 2535 | -8/Materials | Entered Factory 2535 | -7/Factory | Evolved 2 slots: Utility x2 2546 | -7/Factory | Identified exit to DSF 2546 | -7/Factory | Entered DSF 2615 | -7/DSF | Additional patrols routed to DSF 2779 | -7/DSF | Identified exit to Factory 2779 | -7/DSF | Discovered exit to Factory (range 15) 2916 | -7/DSF | Sterilization system engaged 2936 | -7/DSF | Ambient heat levels rising (+10) 2949 | -7/DSF | Entered Factory 2949 | -6/Factory | Evolved 2 slots: Power x1, Weapon x1 3485 | -6/Factory | Core integrity fell below 50% 3939 | -6/Factory | Build established: Scavenger-Gunner 3979 | -6/Factory | Identified exit to Extension 3979 | -6/Factory | Discovered exit to Extension (range 6) 4051 | -6/Factory | Entered Extension 4233 | -6/Extension | Spotted B-75 Beast 4304 | -6/Extension | Core integrity fell below 20% 4347 | -6/Extension | Destroyed by B-75 Beast with Heavy Plasma Cannon Last Messages --------------- Knocked back. G-50 Soldier destroyed. Imp. Reaction Control System destroyed. Hvy. Plasma Cannon destroyed. Carbon-fiber Leg destroyed. Knocked back. R-10 Processor collects Carbon-fiber Leg. Slug penetrates R-10 Processor. Penetrated by Slug. EM Pulse Cannon destroyed. R-10 Processor collects Carbon-fiber Leg. Slug penetrates Wall. Adv. Heat Sink destroyed. Slug penetrates Wall. EM Pulse Cannon destroyed. Wall collapses. Penetrated by Slug. Slug penetrates Wall. Penetrated by Slug. [Achievement: First Step to Greatness] Map ----- +----------------------------------------------------+ | ?????????????????????????????????????????????????? | | ?????????????????????????????????????????????????? | | ?????????????????????????????????????????????????? | | ?????????????????????????????????????????????????? | | ?????????????????????????????????????????????????? | | ?????????????????????????????????????????????????? | | ?????????????????????????????????????????????????? | | ?????????????????????????????????????????????????? | | ?????????????????????????????????????????????????? | | ?????????????????????????????????????????????????? | | ?????????????????????????????????????????????????? | | ?????????????????????????????????????????????????? | | ?????????????????????????????????????????????????? | | ?????????????????????????????????????????????????? | | ?????????????????????????????????????????????????? | | ?????????????????????????????????????????????????? | | ?????????????????????????????????????????????????? | | ?????????????????????????????????????????????????? | | ################################################ | | % % % | | % % | | | %k u % % | | ! % BB % % % | | BB% R % % | | ###################/##%;;/###################### | | ??????????????????# "#;; @ #?????????????????? | | ??????????????????# h ### #?????????????????? | | ??????????????????###### #?????????????????????? | | ???????????????????????#####?????????????????????? | | ?????????????????????????????????????????????????? | | ?????????????????????????????????????????????????? | | ?????????????????????????????????????????????????? | | | | | | | | | | | | | | | | | | | | | | | | | | | | | | | | | | | | | +----------------------------------------------------+ Best States ------------- Heat Dissipation 56 Energy Generation 37 Energy Capacity 270 Matter Stores 410 Matter Capacity 450 Sight Range 20 Terrain Scan Density 10 Armor Coverage 150 Resistance: KI 35 Resistance: TH 35 Resistance: EX 35 Resistance: EM 35 Resistance: I 35 Resistance: S 35 Resistance: P 35 Weapon Cycling 15 Evasion (%) 55 Targeting Accuracy 5 Energy Filtering 30 Offensive Hacking 20 Item Schematics ----------------- None Robot Schematics ------------------ None Fabricated ------------ Nothing Alien Tech Used ----------------- None Achievements -------------- First Step to Greatness Part-time Mechanic Power Corrupts Shopping List Challenges ------------ None Game ------ Seed RiotEtherialSink Manual? 0 Play Time 00:54:27 Cumulative 3.4 hours Start 2024.04.12 @ 14:55:25 End 2024.04.12 @ 16:06:12 Sessions 1 Manual Loads 0 Difficulty Explorer Special Mode None Game No. 2 Rogue 0 Adventurer 0 Explorer 2 Win Type - Total 0 Types 0/0/0/0/0/0/0/0/0 Lore% 0 Gallery% 8 Achievement% 8 Wizard Run 0 Options --------- Layout 0 ASCII 0 Keyboard 0 Movement Mouse Keybinds 0 Fullscreen 1 Font 24/Smallcaps Map View 76x50 Zoom Use 0% Tactical HUD 0 Map Filters NONE Filters NONE Steam 1 RUN: 8c28898e-a281-4621-a2f7-0eb1a649d6d3